Workbook

Sheet Start
B1: OM DENNE SKABELON
B2: Brug denne skabelon til at oprette et budget for kanalmarketing.
B3: Angiv det forventede salg for hver måned og andre oplysninger i tabeller.
B4: Samlede beløb beregnes automatisk, og minidiagrammer opdateres.
B5: Bemærk!
B6: Der er yderligere vejledning at finde i kolonne A i regnearket KANALMARKETINGBUDGET. Denne tekst er skjult med vilje. Du kan fjerne tekst ved at markere kolonne A og derefter vælge Slet. For ikke længere at skjule tekst skal du markere kolonne A og derefter ændre skriftfarven.
B7: Hvis du vil vide mere om tabeller, skal du trykke på SHIFT og derefter F10, mens du er i en tabel, vælge indstillingen TABEL og derefter vælge ALTERNATIV TEKST.

Sheet Kanalmarketingbudget
C2: Takst | D2: Måned 1 | E2: Måned 2 | F2: Måned 3 | G2: Måned 4 | H2: Måned 5 | I2: Måned 6 | J2: Måned 7 | K2: Måned 8 | L2: Måned 9 | M2: Måned 10 | N2: Måned 11 | O2: Måned 12 | Q2: Total
B3: FORVENTET SAMLET SALGSBELØB kr(000) | D3: 750 | E3: 200 | F3: 500 | G3: 1,500 | H3: 1,200 | I3: 1,500 | J3: 1,500 | K3: 1,800 | L3: 2,000 | M3: 2,000 | N3: 2,000 | O3: 2,000 | Q3: =SUM(D3:O3) -> 16,950
A4: Angiv oplysninger i tabellen Medarbejdere, der starter i cellen til højre. Samlet beløb for medarbejdere pr. måned beregnes automatisk i slutningen af tabellen og den årlige total i celle Q9. Minidiagram opdateres i celle S9. Den næste vejledning er i celle A10. | B4: Personalepunkter | C4: Takst | D4: Måned 1 | E4: Måned 2 | F4: Måned 3 | G4: Måned 4 | H4: Måned 5 | I4: Måned 6 | J4: Måned 7 | K4: Måned 8 | L4: Måned 9 | M4: Måned 10 | N4: Måned 11 | O4: Måned 12
B5: MEDARBEJDERE (% AF SAMLET SALG) | D5: =D11+D36+D44+D51 -> 110% | E5: 110% | F5: =F11+F36+F44+F51 -> 110% | G5: 110% | H5: 110% | I5: 110% | J5: 110% | K5: 110% | L5: 85% | M5: 85% | N5: 85% | O5: 85%
B6: HR – antal medarbejdere | C6: 5 | D6: =+$C$6 -> 5 | E6: 5 | F6: 5 | G6: 5 | H6: 5 | I6: 5 | J6: 5 | K6: 5 | L6: 5 | M6: 5 | N6: 5 | O6: 5
B7: HR – omkostninger | D7: =$C$6*D6 -> 25.00 | E7: 25.00 | F7: 25.00 | G7: 25.00 | H7: 25.00 | I7: 25.00 | J7: 25.00 | K7: 25.00 | L7: 25.00 | M7: 25.00 | N7: 25.00 | O7: 25.00 | Q7: =SUM(Kanalmarketingbudget!$D7:$O7) -> 300.00
B8: Provision | C8: 0.10% | D8: =D3*$C$8 -> 0.75 | E8: 0.20 | F8: 0.50 | G8: 1.50 | H8: 1.20 | I8: 1.50 | J8: 1.50 | K8: 1.80 | L8: 2.00 | M8: 2.00 | N8: 2.00 | O8: 2.00 | Q8: =SUM(Kanalmarketingbudget!$D8:$O8) -> 16.95
B9: Samlet beløb for medarbejdere kr(000) | D9: =SUM(D7:D8) -> 25.75 | E9: =SUM(E7:E8) -> 25.20 | F9: 25.50 | G9: 26.50 | H9: 26.20 | I9: 26.50 | J9: 26.50 | K9: 26.80 | L9: 27.00 | M9: 27.00 | N9: 27.00 | O9: 27.00 | Q9: =SUM(Q7:Q8) -> 316.95
B10: ELEMENTER FOR DIREKTE MARKETING | C10: Takst | D10: Måned 1 | E10: Måned 2 | F10: Måned 3 | G10: Måned 4 | H10: Måned 5 | I10: Måned 6 | J10: Måned 7 | K10: Måned 8 | L10: Måned 9 | M10: Måned 10 | N10: Måned 11 | O10: Måned 12
B11: DIREKTE MARKETING (% AF TOTALT SALG) | D11: 100% | E11: 100% | F11: 75% | G11: 40% | H11: 33% | I11: 25% | J11: 20% | K11: 10% | L11: 5% | M11: 5% | N11: 5% | O11: 5%
B12: Telemarketing (% af direkte salg) | D12: 100% | E12: 50% | F12: 50% | G12: 50% | H12: 50% | I12: 50% | J12: 50% | K12: 50% | L12: 50% | M12: 50% | N12: 50% | O12: 50%
B13: HR – antal medarbejdere | C13: 3 | D13: =$C$13*D12 -> 3 | E13: 1.5 | F13: 1.5 | G13: 1.5 | H13: 1.5 | I13: 1.5 | J13: 1.5 | K13: 1.5 | L13: 1.5 | M13: 1.5 | N13: 1.5 | O13: 1.5 | Q13: =SUM(Kanalmarketingbudget!$D13:$O13) -> 19.50
B14: Infrastruktursupport | D14: 25 | E14: 10 | F14: 25 | G14: 10 | H14: 25 | I14: 10 | J14: 25 | K14: 10 | L14: 25 | M14: 10 | N14: 25 | O14: 10 | Q14: =SUM(Kanalmarketingbudget!$D14:$O14) -> 210.00
B15: Provision | C15: 0.10% | D15: =$C$15*D3*D11*D12 -> 0.75 | E15: 0.10 | F15: 0.19 | G15: 0.30 | H15: 0.20 | I15: 0.19 | J15: 0.15 | K15: 0.09 | L15: 0.05 | M15: 0.05 | N15: 0.05 | O15: 0.05 | Q15: =SUM(Kanalmarketingbudget!$D15:$O15) -> 2.16
B16: Kursus | D16: 25 | E16: 10 | F16: 25 | G16: 10 | H16: 25 | I16: 10 | J16: 25 | K16: 10 | L16: 25 | M16: 10 | N16: 25 | O16: 10 | Q16: =SUM(Kanalmarketingbudget!$D16:$O16) -> 210.00
B17: Samlet beløb for telemarketing kr(000) | D17: =SUM(D13:D16) -> 53.75 | E17: =SUM(E13:E16) -> 21.60 | F17: =SUM(F13:F16) -> 51.69 | G17: 21.80 | H17: 51.70 | I17: 21.69 | J17: 51.65 | K17: 21.59 | L17: 51.55 | M17: 21.55 | N17: 51.55 | O17: 21.55 | Q17: =SUM(Q13:Q16) -> 441.66
B18: ELEMENTER FOR INTERNETMARKETING | C18: Takst | D18: Måned 1 | E18: Måned 2 | F18: Måned 3 | G18: Måned 4 | H18: Måned 5 | I18: Måned 6 | J18: Måned 7 | K18: Måned 8 | L18: Måned 9 | M18: Måned 10 | N18: Måned 11 | O18: Måned 12
B19: INTERNETMARKETING (% AF DIREKTE SALG) | D19: 25% | E19: 25% | F19: 25% | G19: 25% | H19: 25% | I19: 25% | J19: 25% | K19: 25% | L19: 25% | M19: 25% | N19: 25% | O19: 25%
B20: HR – antal medarbejdere | C20: 1 | D20: =$C$20*D19 -> 0.25 | E20: 0.25 | F20: 0.25 | G20: 0.25 | H20: 0.25 | I20: 0.25 | J20: 0.25 | K20: 0.25 | L20: 0.25 | M20: 0.25 | N20: 0.25 | O20: 0.25 | Q20: =SUM(Kanalmarketingbudget!$D20:$O20) -> 3.00
B21: Webstedsudvikling (engangsomkostning) | D21: 500 | Q21: =SUM(Kanalmarketingbudget!$D21:$O21) -> 500.00
B22: Hosting | D22: 10 | E22: 10 | F22: 10 | G22: 10 | H22: 10 | I22: 10 | J22: 10 | K22: 10 | L22: 10 | M22: 10 | N22: 10 | O22: 10 | Q22: =SUM(Kanalmarketingbudget!$D22:$O22) -> 120.00
B23: Support og vedligeholdelse | D23: 25 | N23: 25 | Q23: =SUM(Kanalmarketingbudget!$D23:$O23) -> 50.00
B24: Facebook | E24: 100 | G24: 100 | I24: 100 | K24: 100 | M24: 100 | O24: 100 | Q24: =SUM(Kanalmarketingbudget!$D24:$O24) -> 600.00
B25: Twitter | D25: 100 | F25: 100 | H25: 100 | J25: 100 | L25: 100 | N25: 100 | Q25: =SUM(Kanalmarketingbudget!$D25:$O25) -> 600.00
B26: YouTube | E26: 100 | G26: 100 | H26: 100 | L26: 100 | M26: 100 | O26: 100 | Q26: =SUM(Kanalmarketingbudget!$D26:$O26) -> 600.00
B27: Samlet beløb for internetmarketing kr(000) | D27: =SUM(D20:D23) -> 535.25 | E27: 10.25 | F27: 10.25 | G27: 10.25 | H27: 10.25 | I27: 10.25 | J27: 10.25 | K27: 10.25 | L27: 10.25 | M27: 10.25 | N27: 35.25 | O27: 10.25 | Q27: =SUM(Q20:Q23) -> 673.00
B28: DIRECT MAIL-PUNKTER | C28: Takst | D28: Måned 1 | E28: Måned 2 | F28: Måned 3 | G28: Måned 4 | H28: Måned 5 | I28: Måned 6 | J28: Måned 7 | K28: Måned 8 | L28: Måned 9 | M28: Måned 10 | N28: Måned 11 | O28: Måned 12
B29: DIRECT MAIL (% AF DIREKTE SALG)
B30: HR – omkostninger | Q30: =SUM(Kanalmarketingbudget!$D30:$O30) -> 0.00
B31: Materiale | D31: 1000 | E31: 1000 | F31: 1000 | G31: 1000 | H31: 1000 | I31: 1000 | J31: 1000 | K31: 1000 | L31: 1000 | M31: 1000 | N31: 1000 | O31: 1000 | Q31: =SUM(Kanalmarketingbudget!$D31:$O31) -> 12,000.00
B32: Porto | D32: 250 | E32: 250 | F32: 250 | G32: 250 | H32: 250 | I32: 250 | J32: 250 | K32: 250 | L32: 250 | M32: 250 | N32: 250 | O32: 250 | Q32: =SUM(Kanalmarketingbudget!$D32:$O32) -> 3,000.00
B33: Samlet beløb for direct mail kr(000) | D33: =SUM(D30:D32) -> 1,250.00 | E33: =SUM(E30:E32) -> 1,250.00 | F33: 1,250.00 | G33: 1,250.00 | H33: 1,250.00 | I33: 1,250.00 | J33: 1,250.00 | K33: 1,250.00 | L33: 1,250.00 | M33: 1,250.00 | N33: 1,250.00 | O33: 1,250.00 | Q33: =SUM(Q30:Q32) -> 15,000.00
B34: Samlet beløb for direkte marketing kr(000) | D34: =SUM(DirectMail[[#Totals],[Måned 1]],Internetmarketing[[#Totals],[Måned 1]],DirekteMarketing[[#Totals],[Måned 1]]) -> 1,839.00 | E34: =SUM(DirectMail[[#Totals],[Måned 2]],Internetmarketing[[#Totals],[Måned 2]],DirekteMarketing[[#Totals],[Måned 2]]) -> 1,281.85 | F34: =SUM(DirectMail[[#Totals],[Måned 3]],Internetmarketing[[#Totals],[Måned 3]],DirekteMarketing[[#Totals],[Måned 3]]) -> 1,311.94 | G34: =SUM(DirectMail[[#Totals],[Måned 4]],Internetmarketing[[#Totals],[Måned 4]],DirekteMarketing[[#Totals],[Måned 4]]) -> 1,282.05 | H34: =SUM(DirectMail[[#Totals],[Måned 5]],Internetmarketing[[#Totals],[Måned 5]],DirekteMarketing[[#Totals],[Måned 5]]) -> 1,311.95 | I34: =SUM(DirectMail[[#Totals],[Måned 6]],Internetmarketing[[#Totals],[Måned 6]],DirekteMarketing[[#Totals],[Måned 6]]) -> 1,281.94 | J34: =SUM(DirectMail[[#Totals],[Måned 7]],Internetmarketing[[#Totals],[Måned 7]],DirekteMarketing[[#Totals],[Måned 7]]) -> 1,311.90 | K34: =SUM(DirectMail[[#Totals],[Måned 8]],Internetmarketing[[#Totals],[Måned 8]],DirekteMarketing[[#Totals],[Måned 8]]) -> 1,281.84 | L34: =SUM(DirectMail[[#Totals],[Måned 9]],Internetmarketing[[#Totals],[Måned 9]],DirekteMarketing[[#Totals],[Måned 9]]) -> 1,311.80 | M34: =SUM(DirectMail[[#Totals],[Måned 10]],Internetmarketing[[#Totals],[Måned 10]],DirekteMarketing[[#Totals],[Måned 10]]) -> 1,281.80 | N34: =SUM(DirectMail[[#Totals],[Måned 11]],Internetmarketing[[#Totals],[Måned 11]],DirekteMarketing[[#Totals],[Måned 11]]) -> 1,336.80 | O34: =SUM(DirectMail[[#Totals],[Måned 12]],Internetmarketing[[#Totals],[Måned 12]],DirekteMarketing[[#Totals],[Måned 12]]) -> 1,281.80 | Q34: =SUM(Q33,Q27,Q17,Q9) -> 16,431.61
B35: AGENT-/MÆGLERPUNKTER | C35: Takst | D35: Måned 1 | E35: Måned 2 | F35: Måned 3 | G35: Måned 4 | H35: Måned 5 | I35: Måned 6 | J35: Måned 7 | K35: Måned 8 | L35: Måned 9 | M35: Måned 10 | N35: Måned 11 | O35: Måned 12
B36: AGENT/MÆGLER (% AF SAMLET SALG) | D36: 10% | E36: 10% | F36: 10% | G36: 10% | H36: 10% | I36: 10% | J36: 10% | K36: 10% | L36: 10% | M36: 10% | N36: 10% | O36: 10%
B37: Kommunikation | D37: 50 | E37: 50 | F37: 50 | G37: 50 | H37: 50 | I37: 50 | J37: 50 | K37: 50 | L37: 50 | M37: 50 | N37: 50 | O37: 50 | Q37: =SUM(Kanalmarketingbudget!$D37:$O37) -> 600.00
B38: Kursus | D38: 250.00 | E38: 250.00 | F38: 250.00 | G38: 250.00 | H38: 250.00 | I38: 250.00 | J38: 250.00 | K38: 250.00 | L38: 250.00 | M38: 250.00 | N38: 250.00 | O38: 250.00 | Q38: =SUM(Kanalmarketingbudget!$D38:$O38) -> 3,000.00
B39: Salgsfremstød | D39: 600.00 | E39: 600.00 | F39: 600.00 | G39: 600.00 | H39: 600.00 | I39: 600.00 | J39: 600.00 | K39: 600.00 | L39: 600.00 | M39: 600.00 | N39: 600.00 | O39: 600.00 | Q39: =SUM(Kanalmarketingbudget!$D39:$O39) -> 7,200.00
B40: Rabatter | C40: 10.00% | D40: =D3*D36*$C$40 -> 7.50 | E40: 2.00 | F40: 5.00 | G40: 15.00 | H40: 12.00 | I40: 15.00 | J40: 15.00 | K40: 18.00 | L40: 20.00 | M40: 20.00 | N40: 20.00 | O40: 20.00 | Q40: =SUM(Kanalmarketingbudget!$D40:$O40) -> 169.50
B41: Provision (% af agentens salg) | C41: 10.00% | D41: =D3*D36*$C$41 -> 7.50 | E41: 2.00 | F41: 5.00 | G41: 15.00 | H41: 12.00 | I41: 15.00 | J41: 15.00 | K41: 18.00 | L41: 20.00 | M41: 20.00 | N41: 20.00 | O41: 20.00 | Q41: =SUM(Kanalmarketingbudget!$D41:$O41) -> 169.50
B42: Samlet beløb for agent/mægler kr(000) | D42: =SUM(D37:D41) -> 915.00 | E42: =SUM(E37:E41) -> 904.00 | F42: 910.00 | G42: 930.00 | H42: 924.00 | I42: 930.00 | J42: 930.00 | K42: 936.00 | L42: 940.00 | M42: 940.00 | N42: 940.00 | O42: 940.00 | Q42: =SUM(Q37:Q41) -> 11,139.00
B43: DISTRIBUTØRPUNKTER | C43: Takst | D43: Måned 1 | E43: Måned 2 | F43: Måned 3 | G43: Måned 4 | H43: Måned 5 | I43: Måned 6 | J43: Måned 7 | K43: Måned 8 | L43: Måned 9 | M43: Måned 10 | N43: Måned 11 | O43: Måned 12
B44: DISTRIBUTØRER (% AF SAMLET SALG) | D44: 0% | E44: 0% | F44: 0% | G44: 0% | H44: 0% | I44: 15% | J44: 20% | K44: 40% | L44: 40% | M44: 40% | N44: 40% | O44: 40%
B45: Kommunikation | D45: 50 | E45: 50 | F45: 50 | G45: 50 | H45: 50 | I45: 50 | J45: 50 | K45: 50 | L45: 50 | M45: 50 | N45: 50 | O45: 50 | Q45: =SUM(Kanalmarketingbudget!$D45:$O45) -> 600.00
B46: Kursus | D46: 250.00 | E46: 250.00 | F46: 250.00 | G46: 250.00 | H46: 250.00 | I46: 250.00 | J46: 250.00 | K46: 250.00 | L46: 250.00 | M46: 250.00 | N46: 250.00 | O46: 250.00 | Q46: =SUM(Distributører[[#This Row],[Måned 1]:[Måned 12]]) -> 3,000.00
B47: Salgsfremstød | D47: 600.00 | E47: 600.00 | F47: 600.00 | G47: 600.00 | H47: 600.00 | I47: 600.00 | J47: 600.00 | K47: 600.00 | L47: 600.00 | M47: 600.00 | N47: 600.00 | O47: 600.00 | Q47: =SUM(Distributører[[#This Row],[Måned 1]:[Måned 12]]) -> 7,200.00
B48: Provision/rabatter (% af distributørs salg) | C48: 15.00% | D48: =D3*D44*$C$48 -> 0 | E48: 0 | F48: 0 | G48: 0 | H48: 0 | I48: 33.75 | J48: 45 | K48: 108 | L48: 120 | M48: 120 | N48: 120 | O48: 120 | Q48: =SUM(Distributører[[#This Row],[Måned 1]:[Måned 12]]) -> 666.75
B49: Samlet beløb for distributør kr(000) | D49: =SUM(D45:D48) -> 900.00 | E49: =SUM(E45:E48) -> 900.00 | F49: 900.00 | G49: 900.00 | H49: 900.00 | I49: 933.75 | J49: 945.00 | K49: 1,008.00 | L49: 1,020.00 | M49: 1,020.00 | N49: 1,020.00 | O49: 1,020.00 | Q49: =SUM(Q45:Q48) -> 11,466.75
B50: DETAILVARER | C50: Takst | D50: Måned 1 | E50: Måned 2 | F50: Måned 3 | G50: Måned 4 | H50: Måned 5 | I50: Måned 6 | J50: Måned 7 | K50: Måned 8 | L50: Måned 9 | M50: Måned 10 | N50: Måned 11 | O50: Måned 12
B51: FORHANDLER (% AF SAMLET SALG) | D51: 0% | E51: 0% | F51: 25% | G51: 60% | H51: 67% | I51: 60% | J51: 60% | K51: 50% | L51: 30% | M51: 30% | N51: 30% | O51: 30%
B52: Kommunikation | D52: 50 | E52: 50 | F52: 50 | G52: 50 | H52: 50 | I52: 50 | J52: 50 | K52: 50 | L52: 50 | M52: 50 | N52: 50 | O52: 50
B53: Kursus | D53: 250.00 | E53: 250.00 | F53: 250.00 | G53: 250.00 | H53: 250.00 | I53: 250.00 | J53: 250.00 | K53: 250.00 | L53: 250.00 | M53: 250.00 | N53: 250.00 | O53: 250.00 | Q53: =SUM(Kanalmarketingbudget!$D52:$O52) -> 600.00
B54: Salgsfremstød | D54: 600.00 | E54: 600.00 | F54: 600.00 | G54: 600.00 | H54: 600.00 | I54: 600.00 | J54: 600.00 | K54: 600.00 | L54: 600.00 | M54: 600.00 | N54: 600.00 | O54: 600.00 | Q54: =SUM(Kanalmarketingbudget!$D53:$O53) -> 3,000.00
B55: Kommission/rabatter (% af detailsalg) | C55: 10.00% | D55: =D3*D51*$C$55 -> 0 | E55: 0 | F55: 12.5 | G55: 90 | H55: 80.4 | I55: 90 | J55: 90 | K55: 90 | L55: 60 | M55: 60 | N55: 60 | O55: 60 | Q55: =SUM(Kanalmarketingbudget!$D55:$O55) -> 692.90
B56: Samlet beløb for forhandler kr(000) | D56: =SUM(D52:D55) -> 900.00 | E56: =SUM(E52:E55) -> 900.00 | F56: 912.50 | G56: 990.00 | H56: 980.40 | I56: 990.00 | J56: 990.00 | K56: 990.00 | L56: 960.00 | M56: 960.00 | N56: 960.00 | O56: 960.00 | Q56: =SUM(Q53:Q55) -> 4,292.90
B57: ELEMENTER FOR KUNDEERHVERVELSE OG -FASTHOLDELSE | C57: Takst | D57: Måned 1 | E57: Måned 2 | F57: Måned 3 | G57: Måned 4 | H57: Måned 5 | I57: Måned 6 | J57: Måned 7 | K57: Måned 8 | L57: Måned 9 | M57: Måned 10 | N57: Måned 11 | O57: Måned 12
B58: KUNDEERHVERVELSE OG -FASTHOLDELSE
B59: HR | D59: 50 | E59: 50 | F59: 50 | G59: 50 | H59: 50 | I59: 50 | J59: 50 | K59: 50 | L59: 50 | M59: 50 | N59: 50 | O59: 50 | Q59: =SUM(Kanalmarketingbudget!$D59:$O59) -> 600.00
B60: Kommunikation | D60: 250.00 | E60: 250.00 | F60: 250.00 | G60: 250.00 | H60: 250.00 | I60: 250.00 | J60: 250.00 | K60: 250.00 | L60: 250.00 | M60: 250.00 | N60: 250.00 | O60: 250.00 | Q60: =SUM(Kanalmarketingbudget!$D60:$O60) -> 3,000.00
B61: Salgsfremstød/kuponer | D61: 600 | E61: 600 | F61: 600 | G61: 600 | H61: 600 | I61: 600 | J61: 600 | K61: 600 | L61: 600 | M61: 600 | N61: 600 | O61: 600 | Q61: =SUM(Kanalmarketingbudget!$D61:$O61) -> 7,200.00
B62: Samlet beløb for kundeerhvervelse og -fastholdelse kr(000) | D62: =SUM(D59:D61) -> 900.00 | E62: =SUM(E59:E61) -> 900.00 | F62: 900.00 | G62: 900.00 | H62: 900.00 | I62: 900.00 | J62: 900.00 | K62: 900.00 | L62: 900.00 | M62: 900.00 | N62: 900.00 | O62: 900.00 | Q62: =SUM(Q59:Q61) -> 10,800.00
B63: ELEMENTER FOR ANDRE UDGIFTER | C63: Takst | D63: Måned 1 | E63: Måned 2 | F63: Måned 3 | G63: Måned 4 | H63: Måned 5 | I63: Måned 6 | J63: Måned 7 | K63: Måned 8 | L63: Måned 9 | M63: Måned 10 | N63: Måned 11 | O63: Måned 12
B64: ANDRE UDGIFTER
B65: Rejser | D65: 50 | E65: 50 | F65: 50 | G65: 50 | H65: 50 | I65: 50 | J65: 50 | K65: 50 | L65: 50 | M65: 50 | N65: 50 | O65: 50 | Q65: =SUM(Kanalmarketingbudget!$D65:$O65) -> 600.00
B66: Infrastruktur (computer, telefon osv.) | D66: 250.00 | E66: 250.00 | F66: 250.00 | G66: 250.00 | H66: 250.00 | I66: 250.00 | J66: 250.00 | K66: 250.00 | L66: 250.00 | M66: 250.00 | N66: 250.00 | O66: 250.00 | Q66: =SUM(Kanalmarketingbudget!$D66:$O66) -> 3,000.00
B67: Kanalsupport | D67: 600 | E67: 600 | F67: 600 | G67: 600 | H67: 600 | I67: 600 | J67: 600 | K67: 600 | L67: 600 | M67: 600 | N67: 600 | O67: 600 | Q67: =SUM(Kanalmarketingbudget!$D67:$O67) -> 7,200.00
B68: Samlet beløb for andre udgifter kr(000) | D68: =SUM(D65:D67) -> 900.00 | E68: =SUM(E65:E67) -> 900.00 | F68: 900.00 | G68: 900.00 | H68: 900.00 | I68: 900.00 | J68: 900.00 | K68: 900.00 | L68: 900.00 | M68: 900.00 | N68: 900.00 | O68: 900.00 | Q68: =SUM(Q65:Q67) -> 10,800.00
B70: SAMLET MARKETINGBUDGET: | D70: =SUM(D34,AgentOgMægler[[#Totals],[Måned 1]],Distributører[[#Totals],[Måned 1]],Forhandler[[#Totals],[Måned 1]],BIL[[#Totals],[Måned 1]],AndreUdgifter[[#Totals],[Måned 1]]) -> 6,354.00 | E70: =SUM(AndreUdgifter[[#Totals],[Måned 2]],BIL[[#Totals],[Måned 2]],Forhandler[[#Totals],[Måned 2]],Distributører[[#Totals],[Måned 2]],AgentOgMægler[[#Totals],[Måned 2]],E34) -> 5,785.85 | F70: =SUM(AndreUdgifter[[#Totals],[Måned 3]],BIL[[#Totals],[Måned 3]],Forhandler[[#Totals],[Måned 3]],Distributører[[#Totals],[Måned 3]],AgentOgMægler[[#Totals],[Måned 3]],F34) -> 5,834.44 | G70: =SUM(AndreUdgifter[[#Totals],[Måned 4]],BIL[[#Totals],[Måned 4]],Forhandler[[#Totals],[Måned 4]],Distributører[[#Totals],[Måned 4]],AgentOgMægler[[#Totals],[Måned 4]],G34) -> 5,902.05 | H70: =SUM(AndreUdgifter[[#Totals],[Måned 5]],BIL[[#Totals],[Måned 5]],Forhandler[[#Totals],[Måned 5]],Distributører[[#Totals],[Måned 5]],AgentOgMægler[[#Totals],[Måned 5]],H34) -> 5,916.35 | I70: =SUM(AndreUdgifter[[#Totals],[Måned 6]],BIL[[#Totals],[Måned 6]],Forhandler[[#Totals],[Måned 6]],Distributører[[#Totals],[Måned 6]],AgentOgMægler[[#Totals],[Måned 6]],I34) -> 5,935.69 | J70: =SUM(AndreUdgifter[[#Totals],[Måned 7]],BIL[[#Totals],[Måned 7]],Forhandler[[#Totals],[Måned 7]],Distributører[[#Totals],[Måned 7]],AgentOgMægler[[#Totals],[Måned 7]],J34) -> 5,976.90 | K70: =SUM(AndreUdgifter[[#Totals],[Måned 8]],BIL[[#Totals],[Måned 8]],Forhandler[[#Totals],[Måned 8]],Distributører[[#Totals],[Måned 8]],AgentOgMægler[[#Totals],[Måned 8]],K34) -> 6,015.84 | L70: =SUM(AndreUdgifter[[#Totals],[Måned 9]],BIL[[#Totals],[Måned 9]],Forhandler[[#Totals],[Måned 9]],Distributører[[#Totals],[Måned 9]],AgentOgMægler[[#Totals],[Måned 9]],L34) -> 6,031.80 | M70: =SUM(AndreUdgifter[[#Totals],[Måned 10]],BIL[[#Totals],[Måned 10]],Forhandler[[#Totals],[Måned 10]],Distributører[[#Totals],[Måned 10]],AgentOgMægler[[#Totals],[Måned 10]],M34) -> 6,001.80 | N70: =SUM(AndreUdgifter[[#Totals],[Måned 11]],BIL[[#Totals],[Måned 11]],Forhandler[[#Totals],[Måned 11]],Distributører[[#Totals],[Måned 11]],AgentOgMægler[[#Totals],[Måned 11]],N34) -> 6,056.80 | O70: =SUM(AndreUdgifter[[#Totals],[Måned 12]],BIL[[#Totals],[Måned 12]],Forhandler[[#Totals],[Måned 12]],Distributører[[#Totals],[Måned 12]],AgentOgMægler[[#Totals],[Måned 12]],O34) -> 6,001.80 | Q70: =Q72 -> 0.00
